bitfinex/quotes_BTCUSD_20250308
["timestamp","ask_amount","ask_price","bid_price","bid_amount"]
[1741442737091,0.003,86654.0,86649.0,0.01154]
[1741442737323,0.011539,86657.0,86647.0,0.02581511]
[1741442737324,0.04482237,86655.0,86647.0,0.011541]
[1741442737504,0.04482237,86655.0,86650.0,0.01427411]
[1741442737723,0.04482237,86655.0,86647.0,0.243361]
[1741442737933,0.04482237,86655.0,86651.0,0.01427411]
[1741442738139,0.04482237,86655.0,86649.0,0.01154]
[1741442738267,0.04482237,86655.0,86652.0,0.01427411]
[1741442738467,0.04482237,86655.0,86649.0,0.01154]
[1741442738730,0.04482237,86655.0,86653.0,0.01427411]
[1741442738935,0.04482237,86655.0,86649.0,0.01154]
[1741442739147,0.04482237,86655.0,86654.0,0.01427411]
[1741442739339,0.04482237,86655.0,86649.0,0.01154]
[1741442739744,0.04582237,86655.0,86650.0,0.01427411]
[1741442739951,0.0001699,86651.0,86650.0,0.01427411]
[1741442740511,0.01827306,86651.0,86650.0,0.01427411]
[1741442744050,0.01827306,86651.0,86650.0,0.02581411]
[1741442746824,0.01827306,86651.0,86650.0,0.10466813]
[1741442747028,0.01827306,86651.0,86650.0,0.15376813]
[1741442747029,0.0001699,86651.0,86650.0,0.15376813]
[1741442748023,0.0001699,86651.0,86650.0,0.15676813]
[1741442748226,0.0001699,86651.0,86650.0,0.16076813]
[1741442749250,0.0001699,86651.0,86650.0,0.15376813]
[1741442749842,0.0001699,86651.0,86650.0,0.15876813]
[1741442750226,0.011537,86673.0,86667.0,0.011538]
[1741442750426,0.02042016,86673.0,86668.0,0.13286113]
[1741442750818,0.01809968,86672.0,86668.0,0.13286113]
[1741442751145,0.04757718,86672.0,86668.0,0.13286113]
[1741442752238,0.230763,86669.0,86668.0,0.13286113]
[1741442752432,0.230763,86669.0,86668.0,0.1186]
[1741442752611,0.242301,86669.0,86668.0,0.1186]
[1741442753842,0.242301,86669.0,86668.0,0.13284758]
[1741442754041,0.011538,86669.0,86668.0,0.13284758]
[1741442754267,0.011538,86670.0,86668.0,0.13284758]
[1741442754467,0.04974708,86672.0,86668.0,0.13284758]
[1741442754666,0.04774708,86672.0,86668.0,0.13284758]
[1741442754862,0.01826958,86672.0,86668.0,0.14438558]
[1741442755065,0.01826958,86672.0,86671.0,0.011537]
[1741442755276,0.01826958,86672.0,86671.0,0.242294]
[1741442755623,0.01826958,86672.0,86671.0,0.25652606]
[1741442755823,0.01826958,86672.0,86671.0,0.01423206]
[1741442756222,0.01826958,86672.0,86668.0,0.1186]
[1741442756430,0.01826958,86672.0,86669.0,0.011538]
[1741442756738,0.01826958,86672.0,86671.0,0.001]
[1741442757265,0.01826958,86672.0,86671.0,0.01522613]
[1741442757480,0.0021699,86672.0,86670.0,0.009228]
[1741442757679,0.0021699,86672.0,86671.0,0.01191613]
[1741442757933,0.0021699,86672.0,86671.0,0.32020813]
[1741442758134,0.0142409,86672.0,86671.0,0.09405813]
[1741442758471,0.0142409,86672.0,86671.0,0.01323613]
[1741442758665,0.03234112,86672.0,86671.0,0.01323613]
[1741442758868,0.03234112,86672.0,86669.0,0.001]
[1741442759151,0.03234112,86672.0,86671.0,0.01323613]
[1741442759359,0.03234112,86672.0,86668.0,0.242301]
[1741442759561,0.02027012,86672.0,86671.0,0.13279613]
[1741442759793,0.0021699,86672.0,86671.0,0.11856]
[1741442759966,0.0021699,86672.0,86671.0,0.13179613]
[1741442760168,0.0001699,86672.0,86671.0,0.13179613]
[1741442760380,0.01224284,86672.0,86671.0,0.26673313]
[1741442760600,0.01224284,86672.0,86671.0,0.25519613]
[1741442760736,0.01224284,86672.0,86671.0,0.26773313]
[1741442761385,0.01224284,86672.0,86671.0,0.25619613]
[1741442761962,0.0117069,86672.0,86671.0,0.13275613]
[1741442762990,0.02980651,86672.0,86671.0,0.13275613]
[1741442763392,0.02980651,86672.0,86671.0,0.13175613]
[1741442764142,0.0117069,86672.0,86671.0,0.13175613]
[1741442764344,0.0137069,86672.0,86671.0,0.13175613]
[1741442764794,0.0021699,86672.0,86671.0,0.13175613]
[1741442764993,0.0117069,86672.0,86671.0,0.13275613]
[1741442766096,0.0117069,86672.0,86671.0,0.13082613]
[1741442766234,0.0001699,86672.0,86671.0,0.13082613]
[1741442766442,0.0117069,86672.0,86671.0,0.13116573]
[1741442767414,0.02980705,86672.0,86671.0,0.13116573]
[1741442771936,0.01827005,86672.0,86671.0,0.13116573]
[1741442772277,0.02980705,86672.0,86671.0,0.13116573]
[1741442776683,0.02980705,86672.0,86671.0,0.14270273]
[1741442776684,0.01827005,86672.0,86671.0,0.14270273]
[1741442776944,0.0001699,86672.0,86671.0,0.19140273]
[1741442777150,0.0001699,86672.0,86671.0,0.19255648]
[1741442777352,0.0001699,86672.0,86671.0,0.27018595]
[1741442777475,0.0001699,86672.0,86671.0,0.2690322]
[1741442779345,0.0001699,86672.0,86671.0,0.82867305]
[1741442779770,0.0001699,86672.0,86671.0,0.82767305]
[1741442780523,0.0001699,86672.0,86671.0,1.12767305]
[1741442780731,0.01809595,86698.0,86671.0,1.12767305]
[1741442780732,0.00574878,86705.0,86693.0,0.011534]
[1741442780891,0.00574878,86705.0,86694.0,0.11848]
[1741442780892,0.230681,86700.0,86694.0,0.11848]
[1741442781068,0.011534,86697.0,86694.0,0.11848]
[1741442781489,0.011534,86697.0,86695.0,0.01305808]
[1741442781693,0.02957877,86697.0,86695.0,0.01305808]
[1741442781901,0.011534,86700.0,86695.0,0.01305808]
[1741442782099,0.011534,86699.0,86695.0,0.01305808]
[1741442783316,0.011534,86698.0,86694.0,0.11848]
[1741442783521,0.004,86697.0,86694.0,0.11848]
[1741442783725,0.004,86697.0,86694.0,0.360709]
[1741442783976,0.004,86697.0,86695.0,0.01305808]
[1741442784574,0.011534,86699.0,86695.0,0.01305808]
[1741442784747,0.004,86697.0,86695.0,0.01305808]
[1741442785161,0.04164348,86700.0,86695.0,0.01305808]
[1741442786172,0.011534,86697.0,86695.0,0.01305808]
[1741442786541,0.015534,86697.0,86695.0,0.01305808]
[1741442786743,0.03010948,86700.0,86695.0,0.25528408]
[1741442786886,0.003,86697.0,86696.0,0.011534]
[1741442787312,0.003,86697.0,86696.0,0.0245612]
[1741442788237,0.007,86697.0,86696.0,0.0245612]
[1741442788732,0.004,86697.0,86696.0,0.0245612]
[1741442788949,0.004,86697.0,86696.0,0.0130272]
[1741442789152,0.02509383,86697.0,86696.0,0.0130272]
[1741442789364,0.02509383,86697.0,86694.0,0.130014]
[1741442789635,0.02109383,86697.0,86696.0,0.01302545]
[1741442789839,0.01809383,86697.0,86694.0,0.130014]
[1741442790045,0.01809383,86697.0,86696.0,0.002]
[1741442790254,0.01809383,86697.0,86696.0,0.01402545]
[1741442790660,0.01809383,86697.0,86696.0,0.01302545]
[1741442790863,0.01809383,86697.0,86694.0,0.12048]
[1741442791126,0.01809383,86697.0,86695.0,0.01302545]
[1741442791593,0.01809383,86697.0,86696.0,0.002]
[1741442791794,0.02962783,86697.0,86696.0,0.002]
[1741442792154,0.02962783,86697.0,86696.0,0.01502545]
[1741442792382,0.02962783,86697.0,86696.0,0.002]
[1741442792738,0.04642629,86698.0,86696.0,0.002]
[1741442792974,0.011534,86697.0,86696.0,0.002]
[1741442793199,0.011534,86697.0,86696.0,0.12044]
[1741442793371,0.011534,86697.0,86696.0,0.002]
[1741442793614,0.01693652,86684.0,86682.0,0.14812]
[1741442793973,0.01693652,86684.0,86683.0,0.11844]
[1741442794570,0.01693652,86684.0,86683.0,0.129976]
[1741442795029,0.01693652,86684.0,86683.0,0.20952955]
[1741442795233,0.01693652,86684.0,86683.0,0.20987289]
[1741442795473,0.01693652,86684.0,86683.0,0.21587289]
[1741442795672,0.01693652,86684.0,86683.0,0.21552955]
[1741442796116,0.01693652,86684.0,86683.0,0.26492955]
[1741442796409,0.01693652,86684.0,86683.0,0.263776]
[1741442796560,0.01693652,86684.0,86683.0,0.26400948]
[1741442796769,0.01693652,86684.0,86683.0,0.263776]
[1741442797937,0.01693652,86684.0,86683.0,0.27679901]
[1741442798806,0.01693652,86684.0,86683.0,0.15835901]
[1741442799012,0.01693652,86684.0,86683.0,0.28279901]
[1741442799635,0.00132619,86700.0,86696.0,0.011534]
[1741442799844,0.0001698,86700.0,86697.0,0.242222]
[1741442800048,0.0001698,86700.0,86698.0,0.011534]
[1741442800460,0.0001698,86700.0,86699.0,0.01301744]
[1741442801296,0.0117038,86700.0,86699.0,0.01301744]
[1741442801468,0.0117038,86700.0,86692.0,0.230701]
[1741442801629,0.00115639,86699.0,86695.0,0.01301744]
[1741442801833,0.011534,86698.0,86695.0,0.01301744]
[1741442802048,0.01269039,86698.0,86695.0,0.01301744]
[1741442802526,0.00115639,86698.0,86695.0,0.01301744]
[1741442802934,0.0001698,86700.0,86697.0,0.011534]
[1741442803366,0.0001698,86700.0,86699.0,0.242217]
[1741442803987,0.0001698,86700.0,86699.0,0.41923444]
[1741442804621,0.0001698,86700.0,86699.0,0.49683444]
[1741442804827,0.0001698,86700.0,86699.0,1.34193444]
[1741442805234,0.0001698,86700.0,86699.0,1.34593444]
[1741442806073,0.0001698,86700.0,86699.0,1.34193444]
[1741442806294,0.0001698,86700.0,86699.0,1.38147529]
[1741442806721,0.0001698,86700.0,86699.0,1.38847529]
[1741442807346,0.0001698,86700.0,86699.0,1.39547529]
[1741442808626,0.0001698,86700.0,86699.0,1.42047529]
[1741442809244,4.2e-07,86701.0,86700.0,0.35107485]
[1741442809428,4.2e-07,86701.0,86700.0,0.47455983]
[1741442809637,4.2e-07,86701.0,86700.0,0.48752424]
[1741442810049,4.2e-07,86701.0,86700.0,0.48583059]
[1741442811962,4.2e-07,86701.0,86700.0,0.49283059]
[1741442813896,0.00017022,86701.0,86700.0,0.49283059]
[1741442814101,0.00017022,86701.0,86700.0,0.49983059]
[1741442814971,0.00017022,86701.0,86700.0,1.04493059]
[1741442815689,2.2e-07,86701.0,86700.0,1.04493059]
[1741442815933,2.2e-07,86701.0,86700.0,1.06993059]
[1741442816882,2.2e-07,86701.0,86700.0,1.06964561]
[1741442817633,1e-06,86709.0,86708.0,0.03483835]
[1741442817866,1e-06,86709.0,86708.0,0.65423303]
[1741442818108,1e-06,86709.0,86708.0,0.66598827]
[1741442819711,1e-06,86709.0,86708.0,0.67298827]
[1741442819957,1e-06,86709.0,86708.0,0.67998827]
[1741442820198,1e-06,86709.0,86708.0,0.67846399]
[1741442820918,1e-06,86709.0,86708.0,1.22310286]
[1741442821207,1e-06,86709.0,86708.0,1.19979651]
[1741442821682,1e-06,86709.0,86708.0,1.17479651]
[1741442821914,1e-06,86709.0,86708.0,1.29315651]
[1741442822373,1e-06,86709.0,86708.0,1.27861566]
[1741442824554,1e-06,86709.0,86708.0,0.84837566]
[1741442825540,1e-06,86709.0,86708.0,0.84137566]
[1741442826279,1e-06,86709.0,86708.0,1.23871651]
[1741442826517,0.0001709,86709.0,86708.0,1.29311651]
[1741442828726,0.0001709,86709.0,86708.0,1.27857566]
[1741442829965,0.0001709,86709.0,86708.0,1.27720381]
[1741442830172,0.0001709,86709.0,86708.0,0.60190381]
[1741442830447,0.0001709,86709.0,86708.0,0.48358381]
[1741442830695,0.0001709,86709.0,86708.0,0.60190381]
[1741442833044,0.0001709,86709.0,86708.0,0.58955709]
[1741442833258,0.0001709,86709.0,86708.0,0.60108909]
[1741442833503,0.0001709,86709.0,86708.0,0.73799414]
[1741442833736,0.0001709,86709.0,86708.0,0.73762994]
[1741442835145,9e-07,86709.0,86708.0,0.73762994]
[1741442835377,9e-07,86709.0,86708.0,0.73788001]
[1741442835611,9e-07,86709.0,86708.0,0.73762994]
[1741442835848,9e-07,86709.0,86708.0,0.72308909]
[1741442836082,9e-07,86709.0,86708.0,0.67698909]
[1741442838059,9e-07,86709.0,86708.0,0.60108909]
[1741442839216,9e-07,86709.0,86708.0,0.60142889]
[1741442839957,9e-07,86709.0,86708.0,0.30142889]
[1741442840209,9e-07,86709.0,86708.0,0.18310889]
[1741442840466,0.00169455,86709.0,86708.0,0.28989689]
[1741442841380,0.00169455,86709.0,86708.0,0.30142889]
[1741442842159,0.01322655,86709.0,86708.0,0.28989689]
[1741442842400,0.04951901,86709.0,86708.0,0.14556774]
[1741442842892,0.01322655,86709.0,86708.0,0.14556774]
[1741442843390,0.00169455,86709.0,86708.0,0.1326598]
[1741442843641,0.01322655,86709.0,86708.0,0.14556541]
[1741442844679,0.01322655,86709.0,86708.0,0.1326598]
[1741442844913,0.01322655,86709.0,86708.0,0.14556541]
[1741442845365,0.00169455,86709.0,86708.0,0.14556541]
[1741442846110,0.230639,86716.0,86709.0,0.011532]
[1741442846348,0.03653409,86713.0,86709.0,0.011532]
[1741442846563,0.00115639,86715.0,86709.0,0.011532]
[1741442846797,0.00115639,86715.0,86710.0,0.01294002]
[1741442847089,0.01809015,86713.0,86710.0,0.01294002]
[1741442847367,0.01809015,86713.0,86710.0,0.25512502]
[1741442848148,0.03763236,86715.0,86710.0,0.02447202]
[1741442848391,0.00115639,86713.0,86710.0,0.26212502]
[1741442848900,0.00115639,86713.0,86711.0,0.011532]
[1741442849145,0.00115639,86713.0,86710.0,0.26212502]
[1741442849403,0.03660411,86715.0,86710.0,0.256185]
[1741442849746,0.03660411,86715.0,86710.0,0.014]
[1741442849879,0.011532,86713.0,86711.0,0.01293634]
[1741442850137,0.01268839,86713.0,86711.0,0.01293634]
[1741442850889,0.01285829,86713.0,86711.0,0.01293634]
[1741442851159,0.01285829,86713.0,86711.0,0.01993634]
[1741442851404,0.0117019,86713.0,86712.0,0.01293636]
[1741442851646,0.02979202,86713.0,86712.0,0.01293636]
[1741442852692,0.0117019,86713.0,86712.0,0.01293636]
[1741442853421,0.0001699,86713.0,86712.0,0.014]
[1741442853635,0.0001699,86713.0,86712.0,0.02693636]
[1741442854116,0.0001699,86713.0,86712.0,0.01293636]
[1741442854371,0.01285829,86713.0,86712.0,0.01893636]
[1741442854577,0.01285829,86713.0,86712.0,0.011]
[1741442854715,0.01285829,86713.0,86712.0,0.005]
[1741442854927,0.01285829,86713.0,86712.0,0.01793636]
[1741442855133,0.0117019,86713.0,86712.0,0.01793636]
[1741442855664,0.0117019,86713.0,86712.0,0.01293636]
[1741442856078,0.0117019,86713.0,86712.0,0.005]
[1741442856283,0.0117019,86713.0,86712.0,0.02393636]
[1741442856526,0.0117019,86713.0,86712.0,0.011]
[1741442856684,0.0117019,86713.0,86712.0,0.02393636]
[1741442857732,0.01285829,86713.0,86712.0,0.02393636]
[1741442858459,0.01053263,86715.0,86712.0,0.02393636]
[1741442858852,0.011532,86713.0,86712.0,0.02393636]
[1741442859266,0.011532,86713.0,86712.0,0.01893636]
[1741442859614,0.011532,86713.0,86712.0,0.02293636]
[1741442859825,0.097832,86713.0,86712.0,0.01693636]
[1741442860030,0.397832,86713.0,86712.0,0.01293636]
[1741442860235,0.397832,86713.0,86712.0,0.01]
[1741442860660,0.011532,86709.0,86708.0,0.0003398]
[1741442860867,0.242188,86709.0,86708.0,0.0003398]
[1741442861499,0.26027958,86709.0,86708.0,0.0003398]
[1741442863360,0.26027958,86709.0,86708.0,0.0013398]
[1741442863945,0.26027958,86709.0,86708.0,0.0003398]
[1741442865388,0.242188,86709.0,86708.0,0.0003398]
[1741442866861,0.25106593,86709.0,86708.0,0.0003398]
[1741442870551,0.00887793,86709.0,86708.0,0.0003398]
[1741442870775,0.011532,86712.0,86708.0,0.0003398]
[1741442871218,0.0001699,86715.0,86710.0,0.011532]
[1741442871440,0.00871123,86715.0,86710.0,0.011532]
[1741442871636,0.0001699,86715.0,86711.0,0.011532]
[1741442871836,0.0001699,86715.0,86712.0,0.230648]
[1741442872051,0.0001699,86715.0,86712.0,0.24218]
[1741442872262,0.0001699,86715.0,86713.0,0.01294328]
[1741442873480,0.011532,86714.0,86713.0,0.01294328]
[1741442873679,0.011532,86714.0,86708.0,0.2425308]
[1741442873885,0.011532,86714.0,86713.0,0.01294328]
[1741442874107,0.011532,86714.0,86709.0,0.011532]
[1741442874265,0.011532,86714.0,86713.0,0.01294328]
[1741442874469,0.011532,86714.0,86709.0,0.011532]
[1741442875028,0.011532,86713.0,86710.0,0.01294328]
[1741442875535,0.011532,86713.0,86708.0,0.0118718]
[1741442875669,0.011532,86713.0,86711.0,0.01294328]
[1741442875876,0.011532,86713.0,86708.0,0.0118718]
[1741442876084,0.011532,86714.0,86708.0,0.0118718]
[1741442876279,0.011532,86714.0,86709.0,0.011532]
[1741442876488,0.011532,86714.0,86709.0,0.02447528]
[1741442876906,0.242175,86714.0,86709.0,0.01294328]
[1741442878106,0.01809061,86713.0,86709.0,0.01294328]
[1741442878514,0.01809061,86713.0,86710.0,0.230653]
[1741442878645,0.01809061,86713.0,86711.0,0.011532]
[1741442879053,0.0001699,86715.0,86712.0,0.01294328]
[1741442879460,0.0001699,86715.0,86713.0,0.11832]
[1741442879665,0.0001699,86715.0,86714.0,0.318975]
[1741442879864,0.0001699,86715.0,86714.0,0.365875]
[1741442880137,0.0001699,86715.0,86714.0,0.37881828]
[1741442882050,0.0001699,86715.0,86714.0,0.14817528]
[1741442882431,0.01825934,86715.0,86714.0,0.14817528]
[1741442882852,0.01825934,86715.0,86714.0,0.15117528]
[1741442883068,0.01825934,86715.0,86714.0,0.38181828]
[1741442885324,0.0001699,86715.0,86714.0,0.38181828]
[1741442886363,0.0001699,86715.0,86714.0,0.38215808]
[1741442888583,0.0001699,86715.0,86714.0,0.50043808]
[1741442889864,0.0001699,86715.0,86695.0,0.011534]
[1741442889865,0.011533,86704.0,86695.0,0.011534]
[1741442890075,0.011533,86704.0,86692.0,0.011535]
[1741442890076,0.011533,86704.0,86697.0,0.11828]
[1741442890298,0.011533,86707.0,86697.0,0.11828]
[1741442890731,0.011533,86707.0,86697.0,0.360501]
[1741442890940,0.011533,86705.0,86697.0,0.11828]
[1741442891144,0.011533,86701.0,86698.0,0.11828]
[1741442891555,0.011534,86699.0,86698.0,0.11828]
[1741442892909,0.011533,86701.0,86698.0,0.11828]
[1741442893117,0.01809202,86699.0,86698.0,0.12328]
[1741442893913,0.01809202,86699.0,86698.0,0.11828]
[1741442894113,0.01809202,86699.0,86698.0,0.12528]
[1741442894319,0.01809202,86699.0,86698.0,0.12228]
[1741442894732,0.01809202,86699.0,86698.0,0.12528]
[1741442895154,0.02962602,86699.0,86698.0,0.12528]
[1741442896212,0.01809202,86699.0,86698.0,0.12128]
[1741442896412,0.01809202,86699.0,86698.0,0.137814]
[1741442896613,0.01809202,86699.0,86698.0,0.14981036]
[1741442896833,0.01809202,86699.0,86698.0,0.14481036]
[1741442897245,0.01809202,86699.0,86698.0,0.14381036]
[1741442897456,0.01809202,86699.0,86698.0,0.14581036]
[1741442897871,0.01809202,86699.0,86698.0,0.13427636]
[1741442898211,0.01809202,86699.0,86698.0,0.27266373]
[1741442898424,0.011531,86722.0,86714.0,0.242175]
[1741442898623,0.02016527,86721.0,86714.0,0.11828]
[1741442898824,0.011531,86720.0,86714.0,0.13032347]
[1741442899052,0.011531,86721.0,86714.0,0.13032347]
[1741442899270,0.011531,86720.0,86714.0,0.13032347]
[1741442899677,0.0031699,86715.0,86714.0,0.13032347]
[1741442900669,0.0061699,86715.0,86714.0,0.13032347]
[1741442901281,0.0031699,86715.0,86714.0,0.13032347]
[1741442901728,0.0061699,86715.0,86714.0,0.14185547]
[1741442901917,0.0061699,86715.0,86714.0,0.2687086]
[1741442902064,0.0061699,86715.0,86714.0,0.26755547]
[1741442902468,0.04533828,86734.0,86728.0,0.230606]
[1741442902676,0.011529,86736.0,86730.0,0.0772]
[1741442902892,0.01808637,86733.0,86730.0,0.0742]
[1741442903094,0.01808637,86733.0,86731.0,0.01202419]
[1741442904251,0.02208637,86733.0,86731.0,0.01202419]
[1741442904438,0.02708637,86733.0,86731.0,0.01202419]
[1741442905499,0.009,86733.0,86731.0,0.01202419]
[1741442908615,0.011529,86732.0,86731.0,0.01202419]
[1741442908821,0.011529,86732.0,86731.0,0.13026419]
[1741442909024,0.011529,86732.0,86731.0,0.11824]
[1741442910691,0.013529,86732.0,86731.0,0.13022666]
[1741442910915,0.013529,86732.0,86731.0,0.11824]
[1741442911732,0.244124,86732.0,86731.0,0.11824]
[1741442912215,0.244124,86732.0,86719.0,0.31936]
[1741442912216,0.011531,86720.0,86719.0,0.0772]
[1741442912412,0.011531,86719.0,86718.0,0.14808]
[1741442912622,0.24216,86719.0,86718.0,0.12999283]
[1741442912910,0.011532,86710.0,86709.0,0.0774]
[1741442913176,0.011533,86705.0,86704.0,0.0774]
[1741442913413,0.011533,86707.0,86704.0,0.11824]
[1741442913635,0.011533,86706.0,86704.0,0.11824]
[1741442914329,0.011533,86707.0,86704.0,0.11824]
[1741442914587,0.011533,86707.0,86704.0,0.12224]
[1741442914588,0.011533,86705.0,86704.0,0.12224]
[1741442914835,0.242217,86699.0,86698.0,0.0003398]
[1741442916363,0.28856222,86699.0,86698.0,0.0003398]
[1741442917218,0.30665586,86699.0,86698.0,0.0003398]
[1741442917430,0.30665586,86699.0,86698.0,0.0053398]
[1741442917641,0.30665586,86699.0,86698.0,0.0093398]
[1741442918955,0.60665586,86699.0,86698.0,0.0093398]
[1741442919209,0.65405586,86699.0,86698.0,0.0093398]
[1741442920476,0.60665586,86699.0,86698.0,0.0093398]
[1741442923764,0.58856222,86699.0,86698.0,0.0093398]
[1741442924802,0.28856222,86699.0,86698.0,0.0093398]
[1741442925213,0.28856222,86699.0,86698.0,0.02396676]
[1741442925413,0.28856222,86699.0,86698.0,0.0093398]
[1741442927152,0.30665471,86699.0,86698.0,0.0093398]
[1741442927377,0.01809249,86699.0,86698.0,0.0208738]
[1741442927592,0.01809249,86699.0,86698.0,0.0093398]
[1741442927809,0.24877549,86699.0,86698.0,0.02396676]
[1741442928024,0.26030949,86699.0,86698.0,0.02396676]
[1741442928249,0.242217,86699.0,86698.0,0.02396676]
[1741442928470,0.242217,86699.0,86698.0,0.0093398]
[1741442931133,0.26031079,86699.0,86698.0,0.0093398]
[1741442933166,0.230677,86701.0,86698.0,0.0093398]
[1741442933374,0.011534,86700.0,86698.0,0.0093398]
[1741442933567,0.011533,86704.0,86700.0,0.0791]
[1741442933767,0.04646307,86705.0,86700.0,0.321313]
[1741442933965,0.230659,86708.0,86702.0,0.011533]
[1741442934282,0.230675,86702.0,86700.0,0.0791]
[1741442934483,0.011533,86702.0,86700.0,0.0791]
[1741442934893,0.24221,86701.0,86700.0,0.0791]
[1741442935094,0.011534,86699.0,86698.0,0.0043398]
[1741442935326,0.242217,86699.0,86698.0,0.0003398]
[1741442935923,0.230672,86703.0,86698.0,0.0003398]
[1741442936076,0.242205,86703.0,86698.0,0.0003398]
[1741442936288,0.242213,86701.0,86698.0,0.0003398]
[1741442936500,0.011534,86700.0,86698.0,0.0053398]
[1741442936696,0.230683,86699.0,86698.0,0.0053398]
[1741442937074,0.242217,86699.0,86698.0,0.0053398]
[1741442937712,0.242205,86703.0,86698.0,0.0003398]
[1741442937933,0.242205,86703.0,86698.0,0.0083398]
[1741442938180,0.24221,86702.0,86698.0,0.0083398]
[1741442938568,0.23068,86700.0,86698.0,0.0043398]
[1741442938789,0.23068,86700.0,86698.0,0.0053398]
[1741442939015,0.23068,86700.0,86698.0,0.0083398]
[1741442939368,0.011534,86699.0,86698.0,0.0033398]
[1741442939588,0.011534,86699.0,86698.0,0.0073398]
[1741442940321,0.011534,86699.0,86698.0,0.0043398]
[1741442940669,0.011534,86699.0,86698.0,0.02193847]
[1741442940880,0.011534,86699.0,86698.0,0.01893847]
[1741442941293,0.011534,86699.0,86698.0,0.0083398]
[1741442941494,0.011534,86699.0,86698.0,0.01893847]
[1741442941696,0.011534,86699.0,86698.0,0.0043398]
[1741442941997,0.011534,86699.0,86698.0,0.01893847]
[1741442942203,0.011534,86699.0,86698.0,0.0093398]
[1741442942372,0.011534,86699.0,86698.0,0.02393847]
[1741442942577,0.011534,86699.0,86698.0,0.0093398]
[1741442942790,0.011534,86699.0,86698.0,0.02395443]
[1741442942998,0.011534,86699.0,86698.0,0.0093398]
[1741442943659,0.011534,86699.0,86698.0,0.0043398]
[1741442945152,0.011534,86699.0,86698.0,0.0093398]
[1741442947154,0.352634,86699.0,86698.0,0.0093398]
[1741442949737,0.311534,86699.0,86698.0,0.0093398]
[1741442951445,0.32962968,86699.0,86698.0,0.0093398]
[1741442952606,0.311534,86699.0,86698.0,0.0093398]
[1741442959103,0.0001699,86702.0,86699.0,0.0798]
[1741442959335,0.24221,86701.0,86700.0,0.0477]
[1741442959569,0.24221,86701.0,86700.0,0.06233509]
[1741442960036,0.011533,86701.0,86700.0,0.06233509]
[1741442960272,0.01809372,86701.0,86700.0,0.06233509]
[1741442960492,0.24877072,86701.0,86700.0,0.06233509]
[1741442960680,0.26030372,86701.0,86700.0,0.06233509]
[1741442961239,0.26030372,86701.0,86700.0,0.06533509]
[1741442961475,0.26030372,86701.0,86700.0,0.01763509]
[1741442961672,0.26030372,86701.0,86700.0,0.007]
[1741442962813,0.24221,86701.0,86700.0,0.007]
[1741442963424,0.24221,86701.0,86700.0,0.02158638]
[1741442965671,0.0117029,86702.0,86700.0,0.02158638]
[1741442965842,0.24221,86701.0,86700.0,0.02158638]
[1741442966245,0.26030312,86701.0,86700.0,0.02158638]
[1741442966868,0.26030312,86701.0,86700.0,0.01758638]
[1741442967073,0.26030312,86701.0,86700.0,0.02158638]
[1741442967654,0.26030312,86701.0,86700.0,0.01758638]
[1741442967952,0.54221,86701.0,86700.0,0.02158638]
[1741442970873,0.54221,86701.0,86700.0,0.01458638]
[1741442971230,0.54221,86701.0,86700.0,0.003]
[1741442971661,0.54221,86701.0,86698.0,0.0003398]
[1741442971881,0.011534,86699.0,86698.0,0.0003398]
[1741442973559,0.011534,86699.0,86698.0,0.01493773]
[1741442973769,0.542217,86699.0,86698.0,0.0023398]
[1741442973997,0.542217,86699.0,86698.0,0.01693773]
[1741442974191,0.542217,86699.0,86698.0,0.0033398]
[1741442974489,0.542217,86699.0,86698.0,0.0003398]
[1741442974660,0.542217,86699.0,86698.0,0.0053398]
[1741442976982,0.542217,86699.0,86695.0,0.10548636]
[1741442977187,0.242225,86696.0,86695.0,0.10548636]
[1741442978173,0.242225,86696.0,86695.0,0.10848636]
[1741442978441,0.242225,86696.0,86695.0,0.006]
[1741442978829,0.242225,86696.0,86695.0,0.003]
[1741442978989,0.242225,86696.0,86695.0,0.007]
[1741442979183,0.542225,86696.0,86695.0,0.007]
[1741442980302,0.542225,86696.0,86695.0,0.003]
[1741442980551,0.242252,86686.0,86684.0,0.1182]
[1741442980750,0.242252,86686.0,86685.0,0.00045522]
[1741442981728,0.243252,86686.0,86685.0,0.00645522]
[1741442981931,0.243252,86686.0,86685.0,0.01145522]
[1741442985370,0.238252,86686.0,86685.0,0.01145522]
[1741442987303,0.238252,86686.0,86685.0,0.08945522]
[1741442987845,0.238252,86686.0,86685.0,0.10407687]
[1741442988834,0.24682353,86686.0,86685.0,0.10407687]
[1741442989038,0.00957153,86686.0,86685.0,0.10407687]
[1741442989816,0.02766743,86686.0,86685.0,0.10407687]
[1741442990016,0.0190959,86686.0,86685.0,0.34633287]
[1741442990220,0.0190959,86686.0,86685.0,0.39323287]
[1741442992911,0.0192658,86686.0,86685.0,0.39323287]
[1741442995765,0.0192658,86686.0,86683.0,0.1182]
[1741442995904,0.0011699,86686.0,86685.0,0.24387627]
[1741442996105,0.0011699,86686.0,86685.0,0.23072]
[1741442996316,0.0011699,86686.0,86685.0,0.01315627]
[1741442996720,0.0001699,86686.0,86683.0,0.1182]
[1741442996926,0.0001699,86686.0,86685.0,0.01315627]
[1741442997125,0.0001699,86686.0,86683.0,0.1252]
[1741442997328,0.0001699,86686.0,86685.0,0.01315627]
[1741442997573,0.0001699,86686.0,86683.0,0.1252]
[1741442997796,0.0001699,86686.0,86685.0,0.01315627]
[1741442998022,0.0001699,86686.0,86683.0,0.1182]
[1741442998235,0.0001699,86686.0,86685.0,0.01314463]
[1741442998378,0.0001699,86686.0,86683.0,0.1182]
[1741442998576,0.0001699,86686.0,86685.0,0.01314463]
[1741442999156,0.0011699,86686.0,86685.0,0.006]
[1741442999350,0.01926491,86686.0,86685.0,0.01914463]
[1741443001165,0.05579991,86686.0,86685.0,0.01914463]
[1741443001575,0.05579991,86686.0,86685.0,0.006]
[1741443001844,0.04426491,86686.0,86685.0,0.006]
[1741443002024,0.05579991,86686.0,86685.0,0.01]
[1741443002236,0.05579991,86686.0,86685.0,0.02314792]
[1741443002434,0.05579991,86686.0,86685.0,0.01]
[1741443002784,0.04426491,86686.0,86685.0,0.01]
[1741443004087,0.0261699,86686.0,86685.0,0.0103398]
[1741443004294,0.0011699,86686.0,86685.0,0.0103398]
[1741443004492,0.0011699,86686.0,86685.0,0.02349058]
[1741443004706,0.0261699,86686.0,86685.0,0.02349058]
[1741443005523,0.0011699,86686.0,86685.0,0.0103398]
[1741443005974,0.0011699,86686.0,86685.0,0.02349058]
[1741443007043,0.0011699,86686.0,86685.0,0.03502658]
[1741443007455,0.01926334,86686.0,86685.0,0.03502658]